[Event "Early-Titled-Tuesday-Blitz-April-23-2024"]
[Site "Chess.com"]
[Date "2024.04.23"]
[Round "4"]
[White "FairChess_on_YouTube"]
[Black "a_kandil"]
[Result "1-0"]
[WhiteElo "3089"]
[BlackElo "2519"]
[TimeControl "180+1"]
[EndTime "8:42:19 PDT"]
[Termination "FairChess_on_YouTube won by resignation"]

1. e4 {[%clk 0:03:00.9]} 1... c5 {[%clk 0:02:59.6]} 2. Nc3 {[%clk 0:02:59.4]}
2... d6 {[%clk 0:02:59.8]} 3. Nge2 {[%clk 0:02:59.1]} 3... g6 {[%clk 0:02:59.9]}
4. d4 {[%clk 0:02:56.9]} 4... cxd4 {[%clk 0:03:00.8]} 5. Nxd4 {[%clk 0:02:57.5]}
5... Bg7 {[%clk 0:03:01.1]} 6. Be3 {[%clk 0:02:58.1]} 6... Nf6 {[%clk
0:03:01.4]} 7. f3 {[%clk 0:02:55.8]} 7... O-O {[%clk 0:03:01.8]} 8. Qd2 {[%clk
0:02:56.2]} 8... Nc6 {[%clk 0:02:57]} 9. O-O-O {[%clk 0:02:56.3]} 9... d5 {[%clk
0:02:57.2]} 10. Kb1 {[%clk 0:02:56.5]} 10... e5 {[%clk 0:02:54]} 11. Nxc6 {[%clk
0:02:54.3]} 11... bxc6 {[%clk 0:02:54.9]} 12. Bc5 {[%clk 0:02:52.9]} 12... Be6
{[%clk 0:02:54.8]} 13. h4 {[%clk 0:02:51.1]} 13... h5 {[%clk 0:02:54.3]} 14. b3
{[%clk 0:02:46.2]} 14... dxe4 {[%clk 0:02:28]} 15. Nxe4 {[%clk 0:02:37.7]} 15...
Nxe4 {[%clk 0:02:25.1]} 16. fxe4 {[%clk 0:02:35.6]} 16... Bg4 {[%clk 0:02:08.5]}
17. Qxd8 {[%clk 0:01:56.5]} 17... Rfxd8 {[%clk 0:02:09.4]} 18. Rxd8+ {[%clk
0:01:56.9]} 18... Rxd8 {[%clk 0:02:07.6]} 19. Bc4 {[%clk 0:01:54.6]} 19... Rd7
{[%clk 0:02:02.5]} 20. a4 {[%clk 0:01:51.7]} 20... Bf8 {[%clk 0:01:57.2]} 21.
Be3 {[%clk 0:01:51.3]} 21... Kg7 {[%clk 0:01:55.9]} 22. a5 {[%clk 0:01:47.7]}
22... f5 {[%clk 0:01:53.3]} 23. a6 {[%clk 0:01:37.8]} 23... f4 {[%clk
0:01:53.1]} 24. Bf2 {[%clk 0:01:36.9]} 24... Kf6 {[%clk 0:01:32.3]} 25. Kb2
{[%clk 0:01:36.1]} 25... Be6 {[%clk 0:01:31.4]} 26. Kc3 {[%clk 0:01:34.2]} 26...
Bxc4 {[%clk 0:01:27.7]} 27. bxc4 {[%clk 0:01:29.9]} 27... Bd6 {[%clk 0:01:14.2]}
28. Rb1 {[%clk 0:01:20.2]} 28... Ke6 {[%clk 0:01:09]} 29. Rb7 {[%clk 0:01:11.8]}
29... c5 {[%clk 0:01:08.4]} 30. Kb3 {[%clk 0:01:01.5]} 30... Rxb7+ {[%clk
0:01:00.5]} 31. axb7 {[%clk 0:01:02.4]} 31... Kd7 {[%clk 0:01:01]} 32. Bxc5
{[%clk 0:00:51.5]} 32... Bb8 {[%clk 0:01:01.1]} 33. Bb4 {[%clk 0:00:39.5]} 33...
Kc6 {[%clk 0:01:01.1]} 34. Ba5 {[%clk 0:00:36.2]} 34... Kxb7 {[%clk 0:00:59.5]}
35. c5 {[%clk 0:00:36.3]} 35... Kc6 {[%clk 0:00:59.5]} 36. Kc4 {[%clk
0:00:36.1]} 36... a6 {[%clk 0:00:54.5]} 37. Bb6 {[%clk 0:00:35.6]} 37... Bc7
{[%clk 0:00:50]} 38. Bxc7 {[%clk 0:00:30.4]} 38... Kxc7 {[%clk 0:00:50.9]} 39.
Kd5 {[%clk 0:00:30.9]} 39... a5 {[%clk 0:00:32.1]} 40. Kxe5 {[%clk 0:00:31]}
40... Kc6 {[%clk 0:00:18.2]} 41. Kd4 {[%clk 0:00:31.1]} 41... a4 {[%clk
0:00:18.7]} 42. c4 {[%clk 0:00:26.4]} 42... a3 {[%clk 0:00:17.2]} 43. Kc3 {[%clk
0:00:26.6]} 43... Kxc5 {[%clk 0:00:17.7]} 44. e5 {[%clk 0:00:27.1]} 44... g5
{[%clk 0:00:14.7]} 45. hxg5 {[%clk 0:00:26.8]} 45... h4 {[%clk 0:00:15.6]} 46.
g6 {[%clk 0:00:23.2]} 46... h3 {[%clk 0:00:13]} 47. gxh3 {[%clk 0:00:18.1]}
47... f3 {[%clk 0:00:13.3]} 48. g7 {[%clk 0:00:17.8]} 48... f2 {[%clk
0:00:13.8]} 49. g8=Q {[%clk 0:00:18.3]} 49... f1=Q {[%clk 0:00:13.8]} 50. Qc8+
{[%clk 0:00:15.1]} 50... Kb6 {[%clk 0:00:13.1]} 51. Qb8+ {[%clk 0:00:15.7]}
51... Kc6 {[%clk 0:00:12.2]} 52. Qa8+ {[%clk 0:00:15.4]} 52... Kc7 {[%clk
0:00:11.7]} 53. Qa7+ {[%clk 0:00:15.5]} 53... Kc6 {[%clk 0:00:10.6]} 54. Qa6+
{[%clk 0:00:15.7]} 54... Kc7 {[%clk 0:00:10.8]} 55. Qa5+ {[%clk 0:00:16.1]}
55... Kc8 {[%clk 0:00:09]} 56. Qxa3 {[%clk 0:00:11.9]} 56... Qxh3+ {[%clk
0:00:08.9]} 57. Kb4 {[%clk 0:00:11.1]} 57... Qh2 {[%clk 0:00:05.4]} 58. Qa8+
{[%clk 0:00:10.8]} 58... Kc7 {[%clk 0:00:05.8]} 59. Qa7+ {[%clk 0:00:11.3]}
59... Kc8 {[%clk 0:00:06]} 60. Qc5+ {[%clk 0:00:11.2]} 60... Kd7 {[%clk
0:00:05.9]} 61. Qd5+ {[%clk 0:00:10.6]} 61... Kc7 {[%clk 0:00:06]} 62. Qd6+
{[%clk 0:00:10.4]} 62... Kc8 {[%clk 0:00:06.4]} 63. Qe6+ {[%clk 0:00:09.3]}
63... Kc7 {[%clk 0:00:06.7]} 64. Qe7+ {[%clk 0:00:09.6]} 64... Kc8 {[%clk
0:00:05.9]} 65. Qe8+ {[%clk 0:00:07]} 65... Kc7 {[%clk 0:00:06.2]} 66. Qf7+
{[%clk 0:00:07.6]} 66... Kc8 {[%clk 0:00:06]} 67. Qe6+ {[%clk 0:00:07.8]} 67...
Kc7 {[%clk 0:00:06.4]} 68. Qd6+ {[%clk 0:00:04.2]} 68... Kb7 {[%clk 0:00:06.4]}
69. Qd5+ {[%clk 0:00:03.9]} 69... Kc7 {[%clk 0:00:06.6]} 70. Qc5+ {[%clk
0:00:04.4]} 70... Kb7 {[%clk 0:00:06.3]} 71. Qb5+ {[%clk 0:00:04.4]} 71... Kc7
{[%clk 0:00:06.9]} 72. Qa5+ {[%clk 0:00:04.2]} 72... Kc6 {[%clk 0:00:06.4]} 73.
Kb3 {[%clk 0:00:04]} 73... Qg3+ {[%clk 0:00:06.1]} 74. Qc3 {[%clk 0:00:04.5]}
74... Qh2 {[%clk 0:00:04.8]} 75. Kb4 {[%clk 0:00:04.4]} 75... Qh8 {[%clk
0:00:04.2]} 76. Qf3+ {[%clk 0:00:04.3]} 76... Kc7 {[%clk 0:00:04.6]} 77. Qf7+
{[%clk 0:00:04.4]} 77... Kc8 {[%clk 0:00:04.3]} 78. Qe6+ {[%clk 0:00:04.5]}
78... Kc7 {[%clk 0:00:04.6]} 79. Qd6+ {[%clk 0:00:04.8]} 79... Kb7 {[%clk
0:00:05.1]} 80. Qd7+ {[%clk 0:00:04.5]} 80... Kb6 {[%clk 0:00:03.9]} 81. Qd6+
{[%clk 0:00:03.7]} 81... Kb7 {[%clk 0:00:04.1]} 82. e6 {[%clk 0:00:04.2]} 82...
Qb2+ {[%clk 0:00:03.6]} 83. Ka5 {[%clk 0:00:04.2]} 83... Qa2+ {[%clk 0:00:02.6]}
84. Kb5 {[%clk 0:00:04.8]} 84... Qb3+ {[%clk 0:00:03]} 85. Qb4 {[%clk
0:00:05.1]} 85... Qe3 {[%clk 0:00:01.8]} 86. e7 {[%clk 0:00:05.4]} 86... Qb6+
{[%clk 0:00:01.8]} 87. Ka4 {[%clk 0:00:05.5]} 1-0

[Event "Early-Titled-Tuesday-Blitz-April-23-2024"]
[Site "Chess.com"]
[Date "2024.04.23"]
[Round "4"]
[White "noblerone"]
[Black "ChessSwole"]
[Result "1/2-1/2"]
[WhiteElo "2517"]
[BlackElo "2707"]
[TimeControl "180+1"]
[EndTime "8:43:08 PDT"]
[Termination "Game drawn by 50-move rule"]

1. e4 {[%clk 0:02:52.7]} 1... e5 {[%clk 0:02:58.2]} 2. Nf3 {[%clk 0:02:50.4]}
2... Nc6 {[%clk 0:02:58.6]} 3. Bc4 {[%clk 0:02:50.7]} 3... Nf6 {[%clk
0:02:56.8]} 4. d3 {[%clk 0:02:49.1]} 4... h6 {[%clk 0:02:53.9]} 5. c3 {[%clk
0:02:46.1]} 5... d6 {[%clk 0:02:51.9]} 6. Bb3 {[%clk 0:02:43.4]} 6... g6 {[%clk
0:02:47.4]} 7. h3 {[%clk 0:02:34.3]} 7... Bg7 {[%clk 0:02:47.1]} 8. O-O {[%clk
0:02:30.1]} 8... O-O {[%clk 0:02:46]} 9. Nbd2 {[%clk 0:01:53]} 9... Re8 {[%clk
0:02:44.6]} 10. Re1 {[%clk 0:01:47.7]} 10... Be6 {[%clk 0:02:44.3]} 11. Nf1
{[%clk 0:01:47.4]} 11... d5 {[%clk 0:02:33.4]} 12. Qe2 {[%clk 0:01:39.3]} 12...
d4 {[%clk 0:02:03.5]} 13. Bxe6 {[%clk 0:01:34.6]} 13... Rxe6 {[%clk 0:02:04.4]}
14. c4 {[%clk 0:01:31.1]} 14... Nd7 {[%clk 0:02:03.2]} 15. Rb1 {[%clk
0:01:26.9]} 15... a5 {[%clk 0:02:02.9]} 16. b3 {[%clk 0:01:24]} 16... Nc5 {[%clk
0:02:01.3]} 17. a3 {[%clk 0:01:20.6]} 17... Kh7 {[%clk 0:01:35.5]} 18. Bd2
{[%clk 0:01:11]} 18... Qf8 {[%clk 0:01:27.2]} 19. Ng3 {[%clk 0:01:02.5]} 19...
Ree8 {[%clk 0:01:20.7]} 20. h4 {[%clk 0:00:54.5]} 20... h5 {[%clk 0:01:14.9]}
21. Ng5+ {[%clk 0:00:51.7]} 21... Kg8 {[%clk 0:01:15.6]} 22. Rf1 {[%clk
0:00:50.9]} 22... f6 {[%clk 0:01:09.5]} 23. Nh3 {[%clk 0:00:47.8]} 23... Ne6
{[%clk 0:01:09.8]} 24. f4 {[%clk 0:00:45.9]} 24... exf4 {[%clk 0:01:07.8]} 25.
Nxf4 {[%clk 0:00:45.4]} 25... Nxf4 {[%clk 0:01:07.7]} 26. Bxf4 {[%clk
0:00:46.3]} 26... Qxa3 {[%clk 0:00:57.2]} 27. Bxc7 {[%clk 0:00:45.5]} 27... Qc5
{[%clk 0:00:44.9]} 28. Bf4 {[%clk 0:00:42.6]} 28... Nb4 {[%clk 0:00:40.4]} 29.
Bd2 {[%clk 0:00:39.5]} 29... Re6 {[%clk 0:00:31.9]} 30. Nh1 {[%clk 0:00:36.1]}
30... Nc6 {[%clk 0:00:21.9]} 31. Bf4 {[%clk 0:00:32.5]} 31... Rae8 {[%clk
0:00:21.2]} 32. Qf2 {[%clk 0:00:30.6]} 32... Kh7 {[%clk 0:00:20]} 33. Qg3 {[%clk
0:00:30.4]} 33... Nb4 {[%clk 0:00:18.5]} 34. Nf2 {[%clk 0:00:26.7]} 34... Nc2
{[%clk 0:00:17.7]} 35. Nh3 {[%clk 0:00:26.1]} 35... Ne3 {[%clk 0:00:15]} 36.
Rfe1 {[%clk 0:00:23.6]} 36... Ng4 {[%clk 0:00:14.8]} 37. Bd2 {[%clk 0:00:22.7]}
37... Kg8 {[%clk 0:00:13.4]} 38. Nf4 {[%clk 0:00:22.8]} 38... Kh7 {[%clk
0:00:12.4]} 39. Nxe6 {[%clk 0:00:22.7]} 39... Rxe6 {[%clk 0:00:13.3]} 40. Ra1
{[%clk 0:00:20.9]} 40... b6 {[%clk 0:00:13.2]} 41. Rab1 {[%clk 0:00:20.4]} 41...
Qe7 {[%clk 0:00:12.8]} 42. b4 {[%clk 0:00:20]} 42... a4 {[%clk 0:00:12.8]} 43.
Rec1 {[%clk 0:00:17.8]} 43... f5 {[%clk 0:00:11.3]} 44. exf5 {[%clk 0:00:17.3]}
44... gxf5 {[%clk 0:00:12.2]} 45. Bg5 {[%clk 0:00:17.2]} 45... Qe8 {[%clk
0:00:11.7]} 46. Qc7 {[%clk 0:00:17]} 46... Re2 {[%clk 0:00:10.3]} 47. Qf4 {[%clk
0:00:16.3]} 47... Qa8 {[%clk 0:00:08.9]} 48. Qxf5+ {[%clk 0:00:15.9]} 48... Kh8
{[%clk 0:00:08.4]} 49. Qf3 {[%clk 0:00:16.6]} 49... Qe8 {[%clk 0:00:08.1]} 50.
Rf1 {[%clk 0:00:16.4]} 50... Rc2 {[%clk 0:00:07.5]} 51. Qf7 {[%clk 0:00:16.4]}
51... Qe2 {[%clk 0:00:06.7]} 52. Qxh5+ {[%clk 0:00:16.3]} 52... Kg8 {[%clk
0:00:07.3]} 53. Qf7+ {[%clk 0:00:16.7]} 53... Kh7 {[%clk 0:00:07.9]} 54. Qf5+
{[%clk 0:00:16.4]} 54... Kg8 {[%clk 0:00:08]} 55. Qf3 {[%clk 0:00:17.3]} 55...
Qe6 {[%clk 0:00:06.5]} 56. c5 {[%clk 0:00:16.8]} 56... Ne5 {[%clk 0:00:06.3]}
57. Qg3 {[%clk 0:00:15.1]} 57... Qd5 {[%clk 0:00:06.6]} 58. cxb6 {[%clk
0:00:14.3]} 58... Nxd3 {[%clk 0:00:06.5]} 59. h5 {[%clk 0:00:13.9]} 59... Be5
{[%clk 0:00:06.7]} 60. Qg4 {[%clk 0:00:13.8]} 60... Kh7 {[%clk 0:00:05.6]} 61.
h6 {[%clk 0:00:13.4]} 61... Qb7 {[%clk 0:00:05]} 62. Bh4 {[%clk 0:00:12.6]}
62... Bh8 {[%clk 0:00:04.2]} 63. Bg5 {[%clk 0:00:12.8]} 63... Ne5 {[%clk
0:00:04.7]} 64. Qg3 {[%clk 0:00:12.6]} 64... Ng6 {[%clk 0:00:05]} 65. Bf4 {[%clk
0:00:12.5]} 65... Bf6 {[%clk 0:00:04.8]} 66. Bg5 {[%clk 0:00:12.6]} 66... Be5
{[%clk 0:00:04.5]} 67. Qg4 {[%clk 0:00:12.1]} 67... d3 {[%clk 0:00:05.1]} 68.
Be3 {[%clk 0:00:12.1]} 68... Re2 {[%clk 0:00:05.3]} 69. Rbd1 {[%clk 0:00:12.5]}
69... Rxe3 {[%clk 0:00:05.2]} 70. Rf5 {[%clk 0:00:11.9]} 70... Re2 {[%clk
0:00:05.2]} 71. Rc1 {[%clk 0:00:11.8]} 71... Bd4+ {[%clk 0:00:05.6]} 72. Kh1
{[%clk 0:00:11.8]} 72... Bxb6 {[%clk 0:00:06.4]} 73. Rf6 {[%clk 0:00:11.9]}
73... Qxg2+ {[%clk 0:00:05.2]} 74. Qxg2 {[%clk 0:00:12]} 74... Rxg2 {[%clk
0:00:06.1]} 75. Kxg2 {[%clk 0:00:12.8]} 75... Ne5 {[%clk 0:00:06.5]} 76. Rd1
{[%clk 0:00:12.9]} 76... Be3 {[%clk 0:00:05.6]} 77. Ra6 {[%clk 0:00:13.4]} 77...
Nc4 {[%clk 0:00:05.7]} 78. Rxa4 {[%clk 0:00:13.8]} 78... Nb2 {[%clk 0:00:05.7]}
79. Rxd3 {[%clk 0:00:12.9]} 79... Nxd3 {[%clk 0:00:06]} 80. Ra3 {[%clk
0:00:13.6]} 80... Ne1+ {[%clk 0:00:05.4]} 81. Kf1 {[%clk 0:00:13.5]} 81... Nc2
{[%clk 0:00:06.3]} 82. Rc3 {[%clk 0:00:13.4]} 82... Nxb4 {[%clk 0:00:06.2]} 83.
Rxe3 {[%clk 0:00:13.5]} 83... Kxh6 {[%clk 0:00:06.7]} 84. Re2 {[%clk 0:00:14.4]}
84... Nd5 {[%clk 0:00:07]} 85. Kg1 {[%clk 0:00:15.3]} 85... Kg5 {[%clk 0:00:07]}
86. Kf2 {[%clk 0:00:16.2]} 86... Nf4 {[%clk 0:00:07.4]} 87. Re4 {[%clk
0:00:16.5]} 87... Kf5 {[%clk 0:00:07.8]} 88. Kf3 {[%clk 0:00:17.1]} 88... Nd5
{[%clk 0:00:08.2]} 89. Ra4 {[%clk 0:00:17.2]} 89... Ke5 {[%clk 0:00:07.9]} 90.
Ra5 {[%clk 0:00:17.7]} 90... Kd4 {[%clk 0:00:08.6]} 91. Ra4+ {[%clk 0:00:18]}
91... Ke5 {[%clk 0:00:09]} 92. Rh4 {[%clk 0:00:18.9]} 92... Nf6 {[%clk
0:00:08.7]} 93. Ke3 {[%clk 0:00:18.7]} 93... Kf5 {[%clk 0:00:08.3]} 94. Rh1
{[%clk 0:00:18.4]} 94... Ng4+ {[%clk 0:00:07.8]} 95. Kf3 {[%clk 0:00:19.1]}
95... Ne5+ {[%clk 0:00:08.1]} 96. Kg3 {[%clk 0:00:19.1]} 96... Ke4 {[%clk
0:00:08.1]} 97. Rh4+ {[%clk 0:00:19.3]} 97... Kd5 {[%clk 0:00:08.6]} 98. Kf4
{[%clk 0:00:19.5]} 98... Nd3+ {[%clk 0:00:08.8]} 99. Kf5 {[%clk 0:00:19.6]}
99... Nc5 {[%clk 0:00:09]} 100. Rh1 {[%clk 0:00:19.5]} 100... Nd3 {[%clk
0:00:08.6]} 101. Rd1 {[%clk 0:00:19.9]} 101... Kd4 {[%clk 0:00:09.3]} 102. Kg6
{[%clk 0:00:17.7]} 102... Ke4 {[%clk 0:00:09.6]} 103. Ra1 {[%clk 0:00:18.6]}
103... Ne5+ {[%clk 0:00:09.4]} 104. Kf6 {[%clk 0:00:17.9]} 104... Nc4 {[%clk
0:00:10.3]} 105. Ke6 {[%clk 0:00:18.8]} 105... Kd4 {[%clk 0:00:10.6]} 106. Ra4
{[%clk 0:00:18.6]} 106... Kc5 {[%clk 0:00:11.3]} 107. Ra1 {[%clk 0:00:18.8]}
107... Kd4 {[%clk 0:00:10.5]} 108. Rd1+ {[%clk 0:00:19]} 108... Ke4 {[%clk
0:00:10.3]} 109. Rc1 {[%clk 0:00:18.6]} 109... Ne3 {[%clk 0:00:10.6]} 110. Kd6
{[%clk 0:00:18.2]} 110... Kd4 {[%clk 0:00:10.8]} 111. Kc6 {[%clk 0:00:18.3]}
111... Nc4 {[%clk 0:00:10.6]} 112. Kb5 {[%clk 0:00:18.5]} 112... Nd6+ {[%clk
0:00:10.9]} 113. Kb4 {[%clk 0:00:18.5]} 113... Ne4 {[%clk 0:00:10.7]} 114. Rd1+
{[%clk 0:00:18.6]} 114... Ke5 {[%clk 0:00:11]} 115. Kc4 {[%clk 0:00:19]} 115...
Nd6+ {[%clk 0:00:11.2]} 116. Kc5 {[%clk 0:00:19]} 116... Ne4+ {[%clk 0:00:11.6]}
117. Kc4 {[%clk 0:00:19.2]} 117... Nd6+ {[%clk 0:00:12]} 118. Kd3 {[%clk
0:00:20.1]} 118... Kd5 {[%clk 0:00:11.8]} 119. Rh1 {[%clk 0:00:19.8]} 119... Ke5
{[%clk 0:00:11.2]} 120. Rh4 {[%clk 0:00:20.2]} 120... Nf5 {[%clk 0:00:11]} 121.
Re4+ {[%clk 0:00:20.2]} 121... Kd5 {[%clk 0:00:11.3]} 122. Ra4 {[%clk
0:00:21.1]} 122... Nd6 {[%clk 0:00:11.3]} 123. Ra5+ {[%clk 0:00:21.6]} 123...
Kc6 {[%clk 0:00:11.9]} 124. Kd4 {[%clk 0:00:21.6]} 124... Nb5+ {[%clk
0:00:12.2]} 125. Kc4 {[%clk 0:00:22]} 125... Nd6+ {[%clk 0:00:12.6]} 126. Kb4
{[%clk 0:00:22.9]} 126... Kb6 {[%clk 0:00:12.5]} 127. Rd5 {[%clk 0:00:22.9]}
127... Kc6 {[%clk 0:00:13]} 128. Rc5+ {[%clk 0:00:23.4]} 128... Kb6 {[%clk
0:00:13.2]} 129. Rh5 {[%clk 0:00:23.8]} 129... Kc6 {[%clk 0:00:13.5]} 130. Rh6
{[%clk 0:00:24.2]} 130... Kd7 {[%clk 0:00:13.8]} 131. Kc5 {[%clk 0:00:24]}
131... Nf7 {[%clk 0:00:11.8]} 132. Rg6 {[%clk 0:00:22.1]} 132... Ke7 {[%clk
0:00:10.8]} 133. Kd5 {[%clk 0:00:22.7]} 133... Kd7 {[%clk 0:00:11.2]} 1/2-1/2

[Event "Early-Titled-Tuesday-Blitz-April-23-2024"]
[Site "Chess.com"]
[Date "2024.04.23"]
[Round "5"]
[White "Levanzovsky"]
[Black "H3nriqueTV"]
[Result "1-0"]
[WhiteElo "2522"]
[BlackElo "2298"]
[TimeControl "180+1"]
[EndTime "8:53:18 PDT"]
[Termination "Levanzovsky won by resignation"]

1. e4 {[%clk 0:02:58.9]} 1... c5 {[%clk 0:02:59.2]} 2. Nf3 {[%clk 0:02:59]} 2...
d6 {[%clk 0:02:58.5]} 3. d4 {[%clk 0:02:59.1]} 3... cxd4 {[%clk 0:02:57]} 4.
Qxd4 {[%clk 0:03:00]} 4... Bd7 {[%clk 0:02:56.8]} 5. Nc3 {[%clk 0:02:55.1]} 5...
Nc6 {[%clk 0:02:56.9]} 6. Qd3 {[%clk 0:02:55.7]} 6... g6 {[%clk 0:02:57.4]} 7.
Be2 {[%clk 0:02:55.2]} 7... Bg7 {[%clk 0:02:57.3]} 8. O-O {[%clk 0:02:55.9]}
8... Nf6 {[%clk 0:02:57.6]} 9. Nd5 {[%clk 0:02:56.3]} 9... O-O {[%clk
0:02:57.5]} 10. c3 {[%clk 0:02:56.2]} 10... Ng4 {[%clk 0:02:51.6]} 11. Bg5
{[%clk 0:02:53.4]} 11... Be6 {[%clk 0:02:34]} 12. Nd4 {[%clk 0:02:44.1]} 12...
Nge5 {[%clk 0:02:09.4]} 13. Nxc6 {[%clk 0:02:44]} 13... Bxd5 {[%clk 0:01:47.4]}
14. Nxd8 {[%clk 0:02:39.8]} 14... Nxd3 {[%clk 0:01:46.9]} 15. Bxd3 {[%clk
0:02:40.3]} 15... f6 {[%clk 0:01:12.4]} 16. exd5 {[%clk 0:02:37.3]} 1-0

[Event "Early-Titled-Tuesday-Blitz-April-23-2024"]
[Site "Chess.com"]
[Date "2024.04.23"]
[Round "5"]
[White "Airquake"]
[Black "kylelancman"]
[Result "1-0"]
[WhiteElo "2667"]
[BlackElo "2500"]
[TimeControl "180+1"]
[EndTime "8:53:39 PDT"]
[Termination "Airquake won by checkmate"]

1. b3 {[%clk 0:03:00.9]} 1... d5 {[%clk 0:02:57.5]} 2. Bb2 {[%clk 0:03:01.5]}
2... Bg4 {[%clk 0:02:57.5]} 3. Nf3 {[%clk 0:03:01.7]} 3... Bxf3 {[%clk
0:02:57.4]} 4. exf3 {[%clk 0:03:01.8]} 4... Nf6 {[%clk 0:02:58.1]} 5. d4 {[%clk
0:03:00.4]} 5... e6 {[%clk 0:02:58.8]} 6. Bd3 {[%clk 0:03:00.7]} 6... Bd6 {[%clk
0:02:57.2]} 7. O-O {[%clk 0:03:01.6]} 7... Nbd7 {[%clk 0:02:54.5]} 8. Nd2 {[%clk
0:03:01.2]} 8... c6 {[%clk 0:02:53.9]} 9. Re1 {[%clk 0:03:01.5]} 9... Qc7 {[%clk
0:02:53]} 10. Nf1 {[%clk 0:03:01.6]} 10... O-O {[%clk 0:02:49.5]} 11. c4 {[%clk
0:03:00.8]} 11... Rfe8 {[%clk 0:02:48]} 12. Rc1 {[%clk 0:02:46.3]} 12... Rad8
{[%clk 0:02:38.1]} 13. h3 {[%clk 0:02:41.7]} 13... e5 {[%clk 0:02:26.3]} 14.
cxd5 {[%clk 0:02:40.2]} 14... Nxd5 {[%clk 0:02:25.5]} 15. Qc2 {[%clk 0:02:31.2]}
15... g6 {[%clk 0:02:20.7]} 16. Bc4 {[%clk 0:02:22.2]} 16... Nb4 {[%clk
0:02:17]} 17. Qb1 {[%clk 0:02:21.4]} 17... Qb8 {[%clk 0:01:53.9]} 18. Ne3 {[%clk
0:02:12]} 18... exd4 {[%clk 0:01:50.1]} 19. Ng4 {[%clk 0:02:06.5]} 19... h5
{[%clk 0:01:44.1]} 20. Nh6+ {[%clk 0:02:04.4]} 20... Kg7 {[%clk 0:01:43.4]} 21.
Bxf7 {[%clk 0:02:02.4]} 21... Rxe1+ {[%clk 0:01:40.7]} 22. Rxe1 {[%clk 0:02:01]}
22... Kxh6 {[%clk 0:01:40.3]} 23. Qxg6# {[%clk 0:02:00.4]} 1-0

[Event "Early-Titled-Tuesday-Blitz-April-23-2024"]
[Site "Chess.com"]
[Date "2024.04.23"]
[Round "5"]
[White "dvglko"]
[Black "MarlonJodar"]
[Result "0-1"]
[WhiteElo "2431"]
[BlackElo "2298"]
[TimeControl "180+1"]
[EndTime "8:53:39 PDT"]
[Termination "MarlonJodar won by resignation"]

1. e4 {[%clk 0:03:00.9]} 1... e5 {[%clk 0:02:57.3]} 2. Nf3 {[%clk 0:03:01.4]}
2... Nc6 {[%clk 0:02:55.9]} 3. Bb5 {[%clk 0:03:01.9]} 3... a6 {[%clk 0:02:56]}
4. Ba4 {[%clk 0:03:02.1]} 4... Nf6 {[%clk 0:02:55.9]} 5. O-O {[%clk 0:03:02.7]}
5... Be7 {[%clk 0:02:56.3]} 6. Re1 {[%clk 0:03:02.5]} 6... b5 {[%clk 0:02:56.6]}
7. Bb3 {[%clk 0:03:02.7]} 7... d6 {[%clk 0:02:56.9]} 8. c3 {[%clk 0:03:02.1]}
8... O-O {[%clk 0:02:57.2]} 9. h3 {[%clk 0:03:02.7]} 9... Nb8 {[%clk 0:02:57]}
10. d4 {[%clk 0:03:01.2]} 10... Nbd7 {[%clk 0:02:57.6]} 11. Nbd2 {[%clk
0:02:56.2]} 11... Bb7 {[%clk 0:02:57.5]} 12. Bc2 {[%clk 0:02:54.6]} 12... Re8
{[%clk 0:02:57.3]} 13. Nf1 {[%clk 0:02:51]} 13... Bf8 {[%clk 0:02:55.1]} 14. Ng3
{[%clk 0:02:51]} 14... g6 {[%clk 0:02:55.2]} 15. Bg5 {[%clk 0:02:48.7]} 15... h6
{[%clk 0:02:54.8]} 16. Be3 {[%clk 0:02:26.6]} 16... exd4 {[%clk 0:02:48.7]} 17.
Bxd4 {[%clk 0:02:23.3]} 17... c5 {[%clk 0:02:47.6]} 18. Bxf6 {[%clk 0:01:53.2]}
18... Nxf6 {[%clk 0:02:48.5]} 19. a4 {[%clk 0:01:48.3]} 19... Qc7 {[%clk
0:02:38.4]} 20. axb5 {[%clk 0:01:40.5]} 20... axb5 {[%clk 0:02:39.3]} 21. Rxa8
{[%clk 0:01:40.9]} 21... Bxa8 {[%clk 0:02:38.4]} 22. e5 {[%clk 0:01:23.6]} 22...
dxe5 {[%clk 0:02:32.1]} 23. Nxe5 {[%clk 0:01:24.5]} 23... Rxe5 {[%clk
0:02:19.2]} 0-1

[Event "Early-Titled-Tuesday-Blitz-April-23-2024"]
[Site "Chess.com"]
[Date "2024.04.23"]
[Round "5"]
[White "joshdaruca"]
[Black "SpeedofLight0"]
[Result "0-1"]
[WhiteElo "2756"]
[BlackElo "3074"]
[TimeControl "180+1"]
[EndTime "8:53:57 PDT"]
[Termination "SpeedofLight0 won by resignation"]

1. b3 {[%clk 0:03:00.9]} 1... d5 {[%clk 0:02:54.9]} 2. Bb2 {[%clk 0:03:00.5]}
2... Bg4 {[%clk 0:02:55.4]} 3. f3 {[%clk 0:03:00.3]} 3... Bh5 {[%clk 0:02:54.1]}
4. h4 {[%clk 0:03:00.9]} 4... f6 {[%clk 0:02:53.4]} 5. d4 {[%clk 0:02:59.5]}
5... Nc6 {[%clk 0:02:53.1]} 6. e3 {[%clk 0:02:57.1]} 6... e5 {[%clk 0:02:52.3]}
7. g4 {[%clk 0:02:57.2]} 7... Bf7 {[%clk 0:02:52.1]} 8. Nc3 {[%clk 0:02:51.9]}
8... Bd6 {[%clk 0:02:51.1]} 9. Nge2 {[%clk 0:02:50.1]} 9... Nge7 {[%clk
0:02:50.1]} 10. Qd2 {[%clk 0:02:49.9]} 10... Qd7 {[%clk 0:02:47.9]} 11. h5
{[%clk 0:02:49.6]} 11... O-O-O {[%clk 0:02:46.2]} 12. O-O-O {[%clk 0:02:50.1]}
12... Rhe8 {[%clk 0:02:43.4]} 13. Kb1 {[%clk 0:02:48.9]} 13... Kb8 {[%clk
0:02:43.4]} 14. Bh3 {[%clk 0:02:44.1]} 14... a6 {[%clk 0:02:38.4]} 15. a3 {[%clk
0:02:39.2]} 15... Na7 {[%clk 0:02:32.9]} 16. Na4 {[%clk 0:02:38.6]} 16... Nb5
{[%clk 0:02:30]} 17. Ka2 {[%clk 0:02:32.8]} 17... Nc6 {[%clk 0:02:23.9]} 18. Bg2
{[%clk 0:01:50.8]} 18... Qe7 {[%clk 0:02:23.2]} 19. b4 {[%clk 0:01:47.7]} 19...
exd4 {[%clk 0:02:09.2]} 20. Nxd4 {[%clk 0:01:47.4]} 20... Qxe3 {[%clk
0:02:09.1]} 21. Qxe3 {[%clk 0:01:42.7]} 21... Rxe3 {[%clk 0:02:10]} 22. Nxc6+
{[%clk 0:01:28.8]} 22... bxc6 {[%clk 0:02:10.9]} 23. Rhe1 {[%clk 0:01:29]} 23...
d4+ {[%clk 0:02:05]} 24. Ka1 {[%clk 0:01:24.9]} 24... Nxa3 {[%clk 0:02:04.4]}
0-1